[Event "New Zealand Rapid Championship"]
[Site "Wellington"]
[Date "2023.01.12"]
[Round "9.5"]
[White "Sole, Michael D"]
[Black "Croad, Nicolas"]
[Result "0-1"]
[TimeControl "25+5"]
[BlackTitle "FM"]
[WhiteFideId "4309030"]
[BlackFideId "4300793"]
[WhiteElo "2093"]
[BlackElo "2309"]

1. e4 {[%clk 00:25:08]} {[%emt 00:00:01]} e5 {[%clk 00:25:09]} {[%emt
00:00:02]} 2. Nf3 {[%clk 00:25:04]} {[%emt 00:00:09]} Nc6 {[%clk 00:25:12]}
{[%emt 00:00:02]} 3. Bb5 {[%clk 00:24:56]} {[%emt 00:00:13]} a6 {[%clk
00:25:15]} {[%emt 00:00:02]} 4. Ba4 {[%clk 00:24:56]} {[%emt 00:00:04]} Nf6
{[%clk 00:25:18]} {[%emt 00:00:02]} 5. O-O {[%clk 00:24:53]} {[%emt 00:00:08]}
Be7 {[%clk 00:25:21]} {[%emt 00:00:02]} 6. Re1 {[%clk 00:24:53]} {[%emt
00:00:06]} b5 {[%clk 00:25:23]} {[%emt 00:00:02]} 7. Bb3 {[%clk 00:24:54]}
{[%emt 00:00:05]} O-O {[%clk 00:25:25]} {[%emt 00:00:02]} 8. a4 {[%clk
00:24:14]} {[%emt 00:00:45]} b4 {[%clk 00:25:23]} {[%emt 00:00:07]} 9. d4
{[%clk 00:24:09]} {[%emt 00:00:10]} Nxd4 {[%clk 00:24:49]} {[%emt 00:00:38]} 10.
Nxd4 {[%clk 00:24:04]} {[%emt 00:00:11]} exd4 {[%clk 00:24:51]} {[%emt
00:00:03]} 11. e5 {[%clk 00:23:50]} {[%emt 00:00:19]} Ne8 {[%clk 00:24:44]}
{[%emt 00:00:11]} 12. Qxd4 {[%clk 00:23:29]} {[%emt 00:00:26]} c5 {[%clk
00:23:40]} {[%emt 00:01:09]} 13. Qd3 {[%clk 00:22:34]} {[%emt 00:01:00]} Bb7
{[%clk 00:21:40]} {[%emt 00:02:06]} 14. a5 {[%clk 00:22:17]} {[%emt 00:00:23]}
d5 {[%clk 00:20:43]} {[%emt 00:01:02]} 15. exd6 {[%clk 00:22:09]} {[%emt
00:00:13]} Qxd6 {[%clk 00:19:54]} {[%emt 00:00:54]} 16. Qxd6 {[%clk 00:21:42]}
{[%emt 00:00:31]} Bxd6 {[%clk 00:19:58]} {[%emt 00:00:02]} 17. Be3 {[%clk
00:20:54]} {[%emt 00:00:53]} Nf6 {[%clk 00:15:45]} {[%emt 00:04:18]} 18. h3
{[%clk 00:20:19]} {[%emt 00:00:40]} Rfe8 {[%clk 00:15:22]} {[%emt 00:00:28]} 19.
Nd2 {[%clk 00:20:11]} {[%emt 00:00:13]} Nd5 {[%clk 00:13:45]} {[%emt 00:01:42]}
20. Nc4 {[%clk 00:19:33]} {[%emt 00:00:43]} Bf8 {[%clk 00:13:48]} {[%emt
00:00:02]} 21. Rad1 {[%clk 00:19:13]} {[%emt 00:00:24]} Nxe3 {[%clk 00:13:32]}
{[%emt 00:00:23]} 22. Rxe3 {[%clk 00:18:49]} {[%emt 00:00:28]} Rad8 {[%clk
00:12:54]} {[%emt 00:00:43]} 23. Rde1 {[%clk 00:18:21]} {[%emt 00:00:33]} Rxe3
{[%clk 00:12:29]} {[%emt 00:00:30]} 24. Nxe3 {[%clk 00:18:10]} {[%emt
00:00:16]} g6 {[%clk 00:12:00]} {[%emt 00:00:33]} 25. Rd1 {[%clk 00:15:57]}
{[%emt 00:02:18]} Rxd1+ {[%clk 00:11:21]} {[%emt 00:00:45]} 26. Nxd1 {[%clk
00:16:01]} {[%emt 00:00:01]} Bg7 {[%clk 00:11:16]} {[%emt 00:00:10]} 27. c3
{[%clk 00:15:33]} {[%emt 00:00:33]} Be5 {[%clk 00:11:13]} {[%emt 00:00:09]} 28.
Ne3 {[%clk 00:14:09]} {[%emt 00:01:28]} bxc3 {[%clk 00:11:12]} {[%emt
00:00:06]} 29. bxc3 {[%clk 00:14:13]} {[%emt 00:00:01]} Bxc3 {[%clk 00:11:02]}
{[%emt 00:00:15]} 30. Nc4 {[%clk 00:14:17]} Bd5 {[%clk 00:10:01]} {[%emt
00:01:06]} 31. Kf1 {[%clk 00:13:58]} {[%emt 00:00:24]} Kf8 {[%clk 00:10:04]}
{[%emt 00:00:02]} 32. g3 {[%clk 00:13:55]} {[%emt 00:00:08]} Ke7 {[%clk
00:09:36]} {[%emt 00:00:33]} 33. Ke2 {[%clk 00:13:58]} {[%emt 00:00:03]} Bd4
{[%clk 00:08:44]} {[%emt 00:00:57]} 34. f3 {[%clk 00:13:27]} {[%emt 00:00:35]}
g5 {[%clk 00:08:00]} {[%emt 00:00:49]} 35. Nd2 {[%clk 00:12:26]} {[%emt
00:01:05]} Bxb3 {[%clk 00:07:34]} {[%emt 00:00:31]} 36. Nxb3 {[%clk 00:12:30]}
{[%emt 00:00:01]} Kd6 {[%clk 00:07:23]} {[%emt 00:00:16]} 37. Kd3 {[%clk
00:12:32]} {[%emt 00:00:03]} Kd5 {[%clk 00:07:04]} {[%emt 00:00:24]} 38. Nd2
{[%clk 00:12:34]} {[%emt 00:00:02]} f5 {[%clk 00:06:32]} {[%emt 00:00:37]} 39.
Nc4 {[%clk 00:11:55]} {[%emt 00:00:45]} Bf2 {[%clk 00:06:05]} {[%emt 00:00:32]}
40. g4 {[%clk 00:11:54]} {[%emt 00:00:06]} fxg4 {[%clk 00:06:04]} {[%emt
00:00:06]} 41. fxg4 {[%clk 00:11:51]} {[%emt 00:00:09]} Be1 {[%clk 00:05:59]}
{[%emt 00:00:10]} 42. Nb6+ {[%clk 00:10:17]} {[%emt 00:01:40]} Kc6 {[%clk
00:06:03]} 43. Kc4 {[%clk 00:10:11]} {[%emt 00:00:11]} Bxa5 {[%clk 00:05:51]}
{[%emt 00:00:17]} 44. Na4 {[%clk 00:10:14]} {[%emt 00:00:01]} Bb4 {[%clk
00:05:48]} {[%emt 00:00:08]} 45. Nb2 {[%clk 00:10:18]} {[%emt 00:00:02]} Kd6
{[%clk 00:05:30]} {[%emt 00:00:23]} 46. Nd3 {[%clk 00:10:19]} {[%emt 00:00:04]}
a5 {[%clk 00:05:33]} {[%emt 00:00:02]} 47. Nf2 {[%clk 00:09:32]} {[%emt
00:00:52]} Ke5 {[%clk 00:05:36]} {[%emt 00:00:02]} 48. Nd3+ {[%clk 00:09:32]}
{[%emt 00:00:05]} Ke4 {[%clk 00:05:39]} {[%emt 00:00:02]} 49. Nf2 {[%clk
00:09:06]} {[%emt 00:00:31]} Kf3 {[%clk 00:05:35]} {[%emt 00:00:09]} 50. Nd3
{[%clk 00:09:10]} Kg3 {[%clk 00:05:27]} {[%emt 00:00:13]} 51. Ne5 {[%clk
00:09:08]} {[%emt 00:00:08]} Kxh3 {[%clk 00:05:25]} {[%emt 00:00:07]} 52. Kb3
{[%clk 00:08:58]} {[%emt 00:00:15]} Kg3 {[%emt 00:00:03]} 53. Kc4 {[%clk
00:08:57]} {[%emt 00:00:05]} Kf4 {[%clk 00:05:30]} {[%emt 00:00:02]} 0-1

[Event "New Zealand Rapid Championship"]
[Site "Wellington"]
[Date "2023.01.12"]
[Round "9.6"]
[White "Cummings, Nick"]
[Black "Coates, Alex"]
[Result "1/2-1/2"]
[TimeControl "25+5"]
[WhiteFideId "4301218"]
[BlackFideId "4311540"]
[WhiteElo "2038"]
[BlackElo "1496"]

1. Nf3 {[%clk 00:25:09]} Nf6 {[%clk 00:25:09]} {[%emt 00:00:02]} 2. c4 {[%clk
00:25:13]} {[%emt 00:00:01]} c5 {[%clk 00:25:11]} {[%emt 00:00:02]} 3. g3
{[%clk 00:25:17]} {[%emt 00:00:01]} Nc6 {[%clk 00:25:12]} {[%emt 00:00:04]} 4.
Bg2 {[%clk 00:25:17]} {[%emt 00:00:05]} e5 {[%clk 00:24:52]} {[%emt 00:00:25]}
5. Nc3 {[%clk 00:24:58]} {[%emt 00:00:24]} Be7 {[%clk 00:24:08]} {[%emt
00:00:49]} 6. O-O {[%clk 00:24:58]} {[%emt 00:00:05]} d6 {[%clk 00:24:00]}
{[%emt 00:00:13]} 7. d3 {[%clk 00:24:59]} {[%emt 00:00:04]} O-O {[%clk
00:23:47]} {[%emt 00:00:17]} 8. Bg5 {[%clk 00:24:10]} {[%emt 00:00:53]} h6
{[%clk 00:23:46]} {[%emt 00:00:07]} 9. Bxf6 {[%clk 00:24:12]} {[%emt 00:00:03]}
Bxf6 {[%clk 00:23:49]} {[%emt 00:00:01]} 10. a3 {[%clk 00:23:41]} {[%emt
00:00:36]} Re8 {[%clk 00:22:07]} {[%emt 00:01:48]} 11. Rb1 {[%clk 00:23:16]}
{[%emt 00:00:30]} Nd4 {[%clk 00:21:04]} {[%emt 00:01:08]} 12. b4 {[%clk
00:21:58]} {[%emt 00:01:22]} Rb8 {[%clk 00:20:06]} {[%emt 00:01:03]} 13. Re1
{[%clk 00:19:39]} {[%emt 00:02:24]} Bg4 {[%clk 00:19:01]} {[%emt 00:01:10]} 14.
Nd2 {[%clk 00:18:03]} {[%emt 00:01:40]} Be7 {[%clk 00:15:16]} {[%emt 00:03:51]}
15. bxc5 {[%clk 00:16:53]} {[%emt 00:01:15]} dxc5 {[%clk 00:15:20]} {[%emt
00:00:02]} 16. Rxb7 {[%clk 00:12:42]} {[%emt 00:04:15]} Rxb7 {[%clk 00:15:23]}
{[%emt 00:00:01]} 17. Bxb7 {[%clk 00:12:46]} {[%emt 00:00:02]} Qa5 {[%clk
00:15:26]} {[%emt 00:00:01]} 18. Ndb1 {[%clk 00:10:56]} {[%emt 00:01:55]} Rb8
{[%clk 00:15:06]} {[%emt 00:00:25]} 19. Bf3 {[%clk 00:10:11]} {[%emt 00:00:50]}
Bf5 {[%clk 00:14:15]} {[%emt 00:00:56]} 20. Bg2 {[%clk 00:07:30]} {[%emt
00:02:46]} Bg4 {[%clk 00:13:53]} {[%emt 00:00:28]} 21. Kf1 {[%clk 00:07:13]}
{[%emt 00:00:22]} Bg5 {[%clk 00:12:59]} {[%emt 00:00:58]} 22. Ne4 {[%clk
00:06:53]} {[%emt 00:00:25]} Be7 {[%clk 00:11:56]} {[%emt 00:01:07]} 23. Qd2
{[%clk 00:06:56]} {[%emt 00:00:03]} Qa6 {[%clk 00:10:49]} {[%emt 00:01:12]} 24.
h3 {[%clk 00:05:48]} {[%emt 00:01:13]} Bxe2+ {[%clk 00:10:32]} {[%emt
00:00:22]} 25. Rxe2 {[%clk 00:05:50]} {[%emt 00:00:02]} Rxb1+ {[%clk 00:10:36]}
{[%emt 00:00:02]} 26. Re1 {[%clk 00:05:54]} {[%emt 00:00:01]} Qb6 {[%clk
00:10:12]} {[%emt 00:00:29]} 27. Nc3 {[%clk 00:05:13]} {[%emt 00:00:46]} Rxe1+
{[%clk 00:09:24]} {[%emt 00:00:54]} 28. Qxe1 {[%clk 00:05:14]} {[%emt
00:00:03]} Qb7 {[%clk 00:08:46]} {[%emt 00:00:14]} 1/2-1/2

[Event "New Zealand Rapid Championship"]
[Site "Wellington"]
[Date "2023.01.12"]
[Round "9.7"]
[White "Van der Hoorn, Thomas"]
[Black "Park-Tamati, Philli"]
[Result "0-1"]
[TimeControl "25+5"]
[WhiteFideId "4314565"]
[BlackFideId "4309090"]
[WhiteElo "1888"]
[BlackElo "1861"]

1. e4 {[%clk 00:25:09]} c6 {[%clk 00:25:09]} {[%emt 00:00:03]} 2. d4 {[%clk
00:25:08]} {[%emt 00:00:05]} d5 {[%clk 00:25:13]} 3. Nc3 {[%clk 00:25:05]}
{[%emt 00:00:08]} dxe4 {[%clk 00:25:17]} 4. Nxe4 {[%clk 00:25:08]} {[%emt
00:00:01]} Bf5 {[%clk 00:25:21]} 5. Ng3 {[%clk 00:24:59]} {[%emt 00:00:15]} Bg6
{[%clk 00:25:25]} 6. h4 {[%clk 00:24:56]} {[%emt 00:00:08]} h6 {[%clk
00:25:29]} 7. Nf3 {[%clk 00:24:52]} {[%emt 00:00:10]} Nd7 {[%clk 00:25:34]}
{[%emt 00:00:01]} 8. h5 {[%clk 00:24:48]} {[%emt 00:00:08]} Bh7 {[%clk
00:25:36]} {[%emt 00:00:02]} 9. Bd3 {[%clk 00:24:43]} {[%emt 00:00:11]} Bxd3
{[%clk 00:25:39]} {[%emt 00:00:02]} 10. Qxd3 {[%clk 00:24:36]} {[%emt
00:00:12]} e6 {[%clk 00:25:43]} 11. Bd2 {[%clk 00:24:28]} {[%emt 00:00:13]}
Ngf6 {[%clk 00:25:46]} {[%emt 00:00:02]} 12. O-O-O {[%clk 00:24:15]} {[%emt
00:00:18]} Be7 {[%clk 00:25:50]} {[%emt 00:00:01]} 13. Kb1 {[%clk 00:24:11]}
{[%emt 00:00:09]} O-O {[%clk 00:25:41]} {[%emt 00:00:13]} 14. Ne4 {[%clk
00:24:10]} {[%emt 00:00:08]} Nxe4 {[%clk 00:25:44]} {[%emt 00:00:02]} 15. Qxe4
{[%clk 00:24:13]} {[%emt 00:00:01]} Nf6 {[%emt 00:00:02]} 16. Qe2 {[%clk
00:24:01]} {[%emt 00:00:16]} Qd5 {[%clk 00:25:52]} {[%emt 00:00:02]} 17. Ne5
{[%clk 00:23:52]} {[%emt 00:00:13]} Qb5 {[%clk 00:25:06]} {[%emt 00:00:52]} 18.
c4 {[%clk 00:20:48]} {[%emt 00:03:09]} Qb6 {[%clk 00:23:28]} {[%emt 00:01:43]}
19. g4 {[%clk 00:19:31]} {[%emt 00:01:22]} Rad8 {[%clk 00:19:37]} {[%emt
00:03:56]} 20. Bc3 {[%clk 00:17:54]} {[%emt 00:01:41]} Qc7 {[%clk 00:18:24]}
{[%emt 00:01:20]} 21. f4 {[%clk 00:16:48]} {[%emt 00:01:10]} Nh7 {[%clk
00:18:15]} {[%emt 00:00:14]} 22. Rdg1 {[%clk 00:14:19]} {[%emt 00:02:34]} b5
{[%clk 00:18:07]} {[%emt 00:00:15]} 23. cxb5 {[%clk 00:11:49]} {[%emt
00:02:34]} cxb5 {[%clk 00:18:09]} {[%emt 00:00:02]} 24. Qxb5 {[%clk 00:10:51]}
{[%emt 00:01:03]} Rb8 {[%clk 00:17:08]} {[%emt 00:01:06]} 25. Qc6 {[%clk
00:10:07]} {[%emt 00:00:49]} Rfc8 {[%clk 00:17:03]} {[%emt 00:00:10]} 26. Qxc7
{[%clk 00:09:49]} {[%emt 00:00:23]} Rxc7 {[%clk 00:17:08]} 27. Ka1 {[%clk
00:09:05]} {[%emt 00:00:49]} Bb4 {[%clk 00:16:54]} {[%emt 00:00:19]} 28. Rc1
{[%clk 00:08:45]} {[%emt 00:00:24]} Rbc8 {[%clk 00:16:22]} {[%emt 00:00:37]} 29.
Rh3 {[%clk 00:08:11]} {[%emt 00:00:38]} Nf6 {[%clk 00:16:14]} {[%emt 00:00:14]}
30. a3 {[%clk 00:07:28]} {[%emt 00:00:49]} Ba5 {[%clk 00:15:39]} {[%emt
00:00:39]} 31. b4 {[%clk 00:03:57]} {[%emt 00:03:37]} Nd5 {[%clk 00:15:35]}
{[%emt 00:00:09]} 32. Kb2 {[%clk 00:03:28]} {[%emt 00:00:35]} Nxf4 {[%clk
00:14:59]} {[%emt 00:00:41]} 33. Rf3 {[%clk 00:02:59]} {[%emt 00:00:33]} Ne2
{[%clk 00:14:57]} {[%emt 00:00:08]} 34. Rcf1 {[%clk 00:02:22]} {[%emt
00:00:42]} Bb6 {[%clk 00:14:19]} {[%emt 00:00:43]} 35. Nxf7 {[%clk 00:01:12]}
{[%emt 00:01:14]} Rxc3 {[%clk 00:13:50]} {[%emt 00:00:34]} 36. Nd6 {[%clk
00:00:59]} {[%emt 00:00:18]} Bxd4 {[%clk 00:13:33]} {[%emt 00:00:22]} 37. Rxc3
{[%clk 00:00:16]} {[%emt 00:00:48]} Rxc3 {[%clk 00:13:22]} {[%emt 00:00:16]} 38.
Ka2 {[%clk 00:00:19]} {[%emt 00:00:02]} Rc6 {[%clk 00:11:56]} {[%emt 00:01:31]}
39. Ne4 {[%clk 00:00:20]} {[%emt 00:00:04]} Nc3+ {[%clk 00:12:00]} {[%emt
00:00:02]} 40. Nxc3 {[%clk 00:00:23]} {[%emt 00:00:02]} Rxc3 {[%clk 00:11:40]}
{[%emt 00:00:25]} 41. a4 {[%clk 00:00:25]} {[%emt 00:00:03]} e5 {[%clk
00:11:16]} {[%emt 00:00:29]} 42. Rd1 {[%clk 00:00:25]} {[%emt 00:00:05]} Rg3
{[%clk 00:11:06]} {[%emt 00:00:15]} 43. Kb1 {[%clk 00:00:22]} {[%emt 00:00:08]}
Rb3+ {[%clk 00:11:08]} {[%emt 00:00:03]} 44. Kc2 {[%clk 00:00:25]} {[%emt
00:00:01]} Rxb4 {[%clk 00:11:12]} {[%emt 00:00:02]} 45. a5 {[%clk 00:00:29]}
{[%emt 00:00:01]} Ra4 {[%clk 00:11:12]} {[%emt 00:00:04]} 46. Kd3 {[%clk
00:00:33]} Rxa5 {[%clk 00:11:14]} {[%emt 00:00:03]} 47. Ke4 {[%clk 00:00:37]}
Ra6 {[%clk 00:11:14]} {[%emt 00:00:05]} 48. Rc1 {[%clk 00:00:41]} {[%emt
00:00:02]} Rd6 {[%clk 00:10:59]} {[%emt 00:00:18]} 49. Kf5 {[%clk 00:00:31]}
{[%emt 00:00:16]} Rf6+ {[%clk 00:10:47]} {[%emt 00:00:17]} 50. Ke4 {[%clk
00:00:35]} {[%emt 00:00:01]} Re6 {[%clk 00:10:41]} {[%emt 00:00:11]} 51. Kd5
{[%clk 00:00:36]} {[%emt 00:00:04]} Kf7 {[%clk 00:10:43]} {[%emt 00:00:03]} 52.
Rc7+ {[%clk 00:00:38]} {[%emt 00:00:04]} Re7 {[%clk 00:10:46]} {[%emt
00:00:01]} 53. Rc8 {[%clk 00:00:42]} {[%emt 00:00:02]} e4 {[%clk 00:10:15]}
{[%emt 00:00:36]} 54. Kxd4 {[%clk 00:00:43]} {[%emt 00:00:04]} e3 {[%clk
00:10:18]} 55. Rc1 {[%clk 00:00:46]} {[%emt 00:00:02]} e2 {[%clk 00:10:22]}
{[%emt 00:00:01]} 56. Re1 {[%clk 00:00:50]} Kf6 {[%clk 00:10:26]} {[%emt
00:00:02]} 57. Kd5 {[%clk 00:00:51]} {[%emt 00:00:04]} Kg5 {[%clk 00:10:28]}
{[%emt 00:00:02]} 58. Kd6 {[%clk 00:00:56]} Re3 {[%clk 00:10:31]} {[%emt
00:00:01]} 59. Kd5 {[%clk 00:00:58]} {[%emt 00:00:03]} a5 {[%clk 00:10:34]}
{[%emt 00:00:03]} 60. Kd4 {[%clk 00:01:02]} {[%emt 00:00:01]} Re8 {[%clk
00:10:37]} {[%emt 00:00:01]} 61. Kc3 {[%clk 00:01:07]} Kxg4 {[%clk 00:10:37]}
{[%emt 00:00:05]} 62. Kb2 {[%clk 00:01:02]} {[%emt 00:00:09]} Re3 {[%clk
00:10:38]} {[%emt 00:00:03]} 63. Ka2 {[%clk 00:00:59]} {[%emt 00:00:08]} Kf3
{[%clk 00:10:41]} {[%emt 00:00:02]} 64. Rc1 {[%clk 00:00:19]} {[%emt 00:00:45]}
e1=Q {[%clk 00:10:37]} {[%emt 00:00:09]} 65. Rc2 {[%clk 00:00:22]} {[%emt
00:00:04]} Re2 {[%clk 00:10:38]} {[%emt 00:00:02]} 66. Kb2 {[%clk 00:00:11]}
{[%emt 00:00:16]} Qb4+ {[%clk 00:10:36]} {[%emt 00:00:07]} 67. Ka1 {[%clk
00:00:12]} {[%emt 00:00:04]} Qa3+ {[%clk 00:10:37]} {[%emt 00:00:04]} 68. Kb1
{[%clk 00:00:15]} {[%emt 00:00:02]} Qb3+ {[%clk 00:10:41]} 69. Ka1 {[%clk
00:00:19]} {[%emt 00:00:01]} Qa4+ {[%clk 00:10:34]} {[%emt 00:00:12]} 70. Kb2
{[%clk 00:00:06]} {[%emt 00:00:18]} Rxc2+ {[%clk 00:10:36]} {[%emt 00:00:02]}
0-1

[Event "New Zealand Rapid Championship"]
[Site "Wellington"]
[Date "2023.01.12"]
[Round "9.8"]
[White "Wang, Justin Zhide"]
[Black "Sun, Wanyao Sarah"]
[Result "1-0"]
[TimeControl "25+5"]
[WhiteFideId "4312830"]
[BlackFideId "4313887"]
[WhiteElo "1619"]
[BlackElo "1270"]

1. e4 {[%clk 00:25:09]} c6 {[%clk 00:25:10]} 2. d4 {[%clk 00:25:14]} d5 {[%clk
00:25:14]} 3. Nc3 {[%clk 00:25:18]} dxe4 {[%clk 00:25:18]} {[%emt 00:00:01]} 4.
Nxe4 {[%clk 00:25:22]} Nf6 {[%clk 00:25:22]} {[%emt 00:00:01]} 5. Nxf6+ {[%clk
00:25:27]} exf6 {[%clk 00:25:26]} {[%emt 00:00:01]} 6. Nf3 {[%clk 00:25:31]}
Bd6 {[%clk 00:25:25]} {[%emt 00:00:05]} 7. Bd3 {[%clk 00:25:35]} {[%emt
00:00:02]} O-O {[%clk 00:25:21]} {[%emt 00:00:08]} 8. O-O {[%clk 00:25:39]}
{[%emt 00:00:02]} Bg4 {[%clk 00:25:23]} {[%emt 00:00:03]} 9. c3 {[%clk
00:25:43]} c5 {[%clk 00:25:19]} {[%emt 00:00:09]} 10. d5 {[%clk 00:25:43]}
{[%emt 00:00:05]} Na6 {[%clk 00:25:15]} {[%emt 00:00:08]} 11. Be2 {[%clk
00:25:39]} {[%emt 00:00:09]} Nc7 {[%clk 00:25:16]} {[%emt 00:00:03]} 12. c4
{[%clk 00:25:43]} {[%emt 00:00:02]} b5 {[%clk 00:25:10]} {[%emt 00:00:10]} 13.
b3 {[%clk 00:25:47]} {[%emt 00:00:02]} b4 {[%clk 00:24:46]} {[%emt 00:00:29]}
14. h3 {[%clk 00:24:56]} {[%emt 00:00:56]} Bh5 {[%clk 00:24:48]} {[%emt
00:00:03]} 15. Bb2 {[%clk 00:25:00]} {[%emt 00:00:02]} Ne8 {[%clk 00:24:28]}
{[%emt 00:00:25]} 16. Nd2 {[%clk 00:25:04]} {[%emt 00:00:02]} Bxe2 {[%clk
00:24:24]} {[%emt 00:00:08]} 17. Qxe2 {[%clk 00:25:08]} Bc7 {[%clk 00:24:24]}
{[%emt 00:00:04]} 18. Ne4 {[%clk 00:25:11]} {[%emt 00:00:04]} Nd6 {[%clk
00:24:11]} {[%emt 00:00:18]} 19. Nxc5 {[%clk 00:24:56]} {[%emt 00:00:20]} Nf5
{[%clk 00:23:54]} {[%emt 00:00:21]} 20. Nd3 {[%clk 00:24:51]} {[%emt 00:00:12]}
Qd6 {[%clk 00:23:28]} {[%emt 00:00:30]} 21. g3 {[%clk 00:23:18]} {[%emt
00:01:38]} Nxg3 {[%clk 00:22:49]} {[%emt 00:00:44]} 22. fxg3 {[%clk 00:23:22]}
{[%emt 00:00:01]} Qxg3+ {[%clk 00:22:51]} {[%emt 00:00:03]} 23. Qg2 {[%clk
00:23:15]} {[%emt 00:00:12]} Qxd3 {[%clk 00:22:34]} {[%emt 00:00:22]} 24. Bxf6
{[%clk 00:23:18]} {[%emt 00:00:03]} g6 {[%clk 00:22:25]} {[%emt 00:00:13]} 25.
Rad1 {[%clk 00:23:10]} {[%emt 00:00:14]} Qe3+ {[%clk 00:22:18]} {[%emt
00:00:10]} 26. Kh1 {[%clk 00:23:11]} {[%emt 00:00:06]} Rfe8 {[%clk 00:22:02]}
{[%emt 00:00:21]} 27. Bd4 {[%clk 00:22:53]} {[%emt 00:00:23]} Qe7 {[%clk
00:21:41]} {[%emt 00:00:18]} 28. c5 {[%clk 00:22:55]} {[%emt 00:00:13]} Qe2
{[%clk 00:19:13]} {[%emt 00:02:31]} 29. Qxe2 {[%clk 00:22:48]} {[%emt
00:00:13]} Rxe2 {[%clk 00:19:16]} {[%emt 00:00:02]} 30. d6 {[%clk 00:22:52]}
Bd8 {[%clk 00:19:10]} {[%emt 00:00:08]} 31. Rf2 {[%clk 00:22:56]} {[%emt
00:00:05]} Re4 {[%clk 00:18:39]} {[%emt 00:00:32]} 32. c6 {[%clk 00:22:42]}
{[%emt 00:00:23]} Rc8 {[%clk 00:18:12]} {[%emt 00:00:30]} 33. c7 {[%clk
00:22:39]} {[%emt 00:00:11]} Bxc7 {[%clk 00:16:13]} {[%emt 00:02:03]} 34. dxc7
{[%clk 00:22:40]} {[%emt 00:00:04]} Rxc7 {[%clk 00:16:16]} {[%emt 00:00:02]} 35.
Bf6 {[%clk 00:22:43]} {[%emt 00:00:02]} Re8 {[%clk 00:15:14]} {[%emt 00:01:07]}
36. Rfd2 {[%clk 00:22:47]} {[%emt 00:00:02]} Rcc8 {[%clk 00:13:09]} {[%emt
00:02:10]} 37. Rd8 {[%clk 00:22:36]} {[%emt 00:00:16]} Rcxd8 {[%clk 00:13:06]}
{[%emt 00:00:07]} 38. Rxd8 {[%clk 00:22:40]} {[%emt 00:00:01]} Rxd8 {[%clk
00:13:09]} {[%emt 00:00:02]} 39. Bxd8 {[%clk 00:22:44]} {[%emt 00:00:01]} Kf8
{[%clk 00:13:08]} {[%emt 00:00:06]} 40. Ba5 {[%clk 00:22:49]} {[%emt 00:00:01]}
Ke8 {[%clk 00:13:07]} {[%emt 00:00:05]} 41. Bxb4 {[%clk 00:22:52]} {[%emt
00:00:01]} Kd7 {[%clk 00:13:07]} {[%emt 00:00:05]} 42. Kg2 {[%clk 00:22:57]}
{[%emt 00:00:01]} Kc6 {[%clk 00:13:07]} {[%emt 00:00:03]} 43. Kf3 {[%clk
00:23:00]} {[%emt 00:00:02]} Kb5 {[%clk 00:13:06]} {[%emt 00:00:06]} 44. a3
{[%clk 00:23:04]} {[%emt 00:00:02]} a5 {[%clk 00:13:04]} {[%emt 00:00:06]} 45.
Bf8 {[%clk 00:23:07]} {[%emt 00:00:02]} a4 {[%clk 00:13:00]} {[%emt 00:00:09]}
46. b4 {[%clk 00:23:10]} {[%emt 00:00:02]} f5 {[%clk 00:12:05]} {[%emt
00:01:00]} 47. Kf4 {[%clk 00:23:15]} Kc4 {[%clk 00:11:45]} {[%emt 00:00:25]} 48.
h4 {[%clk 00:23:19]} {[%emt 00:00:02]} Kb5 {[%clk 00:11:11]} {[%emt 00:00:39]}
49. h5 {[%clk 00:23:22]} {[%emt 00:00:01]} gxh5 {[%clk 00:11:02]} {[%emt
00:00:13]} 50. Kxf5 {[%clk 00:23:25]} {[%emt 00:00:02]} Kb6 {[%clk 00:10:41]}
{[%emt 00:00:27]} 51. Kg5 {[%clk 00:23:29]} {[%emt 00:00:01]} Kb5 {[%clk
00:10:39]} {[%emt 00:00:07]} 52. Kxh5 {[%clk 00:23:33]} {[%emt 00:00:01]} Kb6
{[%clk 00:10:24]} {[%emt 00:00:20]} 53. Kh6 {[%clk 00:23:36]} {[%emt 00:00:02]}
Kb5 {[%clk 00:10:14]} {[%emt 00:00:15]} 54. Kxh7 {[%clk 00:23:40]} Ka6 {[%clk
00:10:17]} {[%emt 00:00:02]} 55. Kg6 {[%clk 00:23:44]} Kb5 {[%clk 00:10:21]}
{[%emt 00:00:01]} 56. Kf5 {[%clk 00:23:49]} Ka6 {[%clk 00:10:20]} {[%emt
00:00:06]} 57. Ke6 {[%clk 00:23:53]} Kb6 {[%clk 00:10:19]} {[%emt 00:00:05]} 58.
Kd5 {[%clk 00:23:57]} {[%emt 00:00:03]} Kb5 {[%clk 00:10:22]} {[%emt 00:00:01]}
59. Be7 {[%clk 00:24:01]} {[%emt 00:00:02]} Kb6 {[%clk 00:10:13]} {[%emt
00:00:12]} 60. Kc4 {[%clk 00:24:05]} {[%emt 00:00:02]} Ka6 {[%clk 00:10:14]}
{[%emt 00:00:04]} 61. b5+ {[%clk 00:24:09]} {[%emt 00:00:02]} Kb6 {[%clk
00:10:00]} {[%emt 00:00:14]} 62. Kb4 {[%clk 00:24:13]} {[%emt 00:00:05]} Kb7
{[%clk 00:10:01]} {[%emt 00:00:03]} 63. Kxa4 {[%clk 00:24:17]} {[%emt
00:00:02]} Kb6 {[%clk 00:10:02]} {[%emt 00:00:03]} 64. Kb4 {[%clk 00:24:20]}
{[%emt 00:00:03]} 1-0